fUST/lending_fUST_20260201
["ID","MTS","AMOUNT","RATE_DAILY","PERIOD"]
[404145344,1769878149223,-5000.0,0.00011304,2]
[404145345,1769878149243,-20487.0012784,0.00011438,2]
[404145346,1769878149264,-591.0,0.00012127,2]
[404145347,1769878149286,-205.0873135,0.00012127,2]
[404145348,1769878149309,-177.0,0.00013135,2]
[404145349,1769878149330,-500.0,0.00013271,2]
[404145350,1769878149353,-15651.23343511,0.00013271,2]
[404145351,1769878157087,-473.00995664,0.0001327,2]
[404145352,1769878157113,-500.0,0.0001327,2]
[404145353,1769878157135,-500.0,0.0001327,2]
[404145354,1769878157156,-500.0,0.0001327,2]
[404145355,1769878157176,-500.0,0.0001327,2]
[404145356,1769878157197,-500.0,0.0001327,2]
[404145357,1769878157218,-581.92026226,0.0001327,2]
[404145358,1769878157240,-500.0,0.0001327,2]
[404145359,1769878157263,-500.0,0.0001327,2]
[404145360,1769878157283,-500.0,0.0001327,2]
[404145361,1769878157305,-500.0,0.0001327,2]
[404145362,1769878157327,-500.0,0.0001327,2]
[404145363,1769878157349,-500.0,0.0001327,2]
[404145364,1769878157370,-500.0,0.0001327,2]
[404145365,1769878157391,-500.0,0.0001327,2]
[404145366,1769878157412,-500.0,0.0001327,2]
[404145367,1769878157433,-500.0,0.0001327,2]
[404145368,1769878157454,-500.0,0.0001327,2]
[404145369,1769878157474,-500.0,0.0001327,2]
[404145370,1769878157497,-500.0,0.0001327,2]
[404145371,1769878157519,-500.0,0.0001327,2]
[404145372,1769878157540,-478.7724661,0.0001327,2]
[404145373,1769878157560,-500.0,0.0001327,2]
[404145374,1769878157581,-500.0,0.0001327,2]
[404145375,1769878157604,-500.0,0.0001327,2]
[404145376,1769878157625,-500.0,0.0001327,2]
[404145377,1769878157646,-500.0,0.0001327,2]
[404145378,1769878157669,-500.0,0.0001327,2]
[404145379,1769878157691,-500.0,0.0001327,2]
[404145380,1769878157712,-500.0,0.0001327,2]
[404145381,1769878157733,-500.0,0.0001327,2]
[404145382,1769878157760,-200.55981221,0.0001327,2]
[404145439,1769878231763,-889.14991763,0.00012877,2]
[404145440,1769878231774,-2771.51232621,0.00012877,2]
[404145441,1769878231784,-602.0,0.00012877,2]
[404145442,1769878231794,-4669.59283626,0.00013007,2]
[404145455,1769878237665,-330.40716374,0.00013007,2]
[404145457,1769878237676,-169.64605858,0.00013137,2]
[404145462,1769878237776,-130.35394142,0.00013137,2]
[404145464,1769878237786,-5000.0,0.00013138,2]
[404145466,1769878237798,-500.0,0.00013269,2]
[404145467,1769878237809,-500.0,0.00013269,2]
[404145468,1769878237819,-500.0,0.00013269,2]
[404145469,1769878237831,-500.0,0.00013269,2]
[404145470,1769878237841,-500.0,0.00013269,2]
[404145471,1769878237852,-500.0,0.00013269,2]
[404145472,1769878237864,-219.86360735,0.00013269,2]
[404145473,1769878237875,-500.0,0.00013269,2]
[404145474,1769878237885,-500.0,0.00013269,2]
[404145475,1769878237897,-500.0,0.00013269,2]
[404145476,1769878237909,-500.0,0.00013269,2]
[404145477,1769878237920,-380.31242952,0.00013269,2]
[404145478,1769878237930,-500.0,0.00013269,2]
[404145479,1769878237943,-500.0,0.00013269,2]
[404145480,1769878237953,-500.0,0.00013269,2]
[404145481,1769878237962,-500.0,0.00013269,2]
[404145482,1769878237976,-500.0,0.00013269,2]
[404145483,1769878237986,-500.0,0.00013269,2]
[404145484,1769878237997,-500.0,0.00013269,2]
[404145485,1769878238007,-500.0,0.00013269,2]
[404145486,1769878238016,-500.0,0.00013269,2]
[404145487,1769878238025,-500.0,0.00013269,2]
[404145488,1769878238034,-500.0,0.00013269,2]
[404145489,1769878238044,-500.0,0.00013269,2]
[404145490,1769878238053,-500.0,0.00013269,2]
[404145491,1769878238062,-500.0,0.00013269,2]
[404145492,1769878238072,-500.0,0.00013269,2]
[404145493,1769878238082,-500.0,0.00013269,2]
[404145494,1769878238092,-500.0,0.00013269,2]
[404145495,1769878238101,-500.0,0.00013269,2]
[404145496,1769878238110,-500.0,0.00013269,2]
[404145497,1769878238119,-500.0,0.00013269,2]
[404145498,1769878238129,-500.0,0.00013269,2]
[404145499,1769878238138,-500.0,0.00013269,2]
[404145500,1769878238148,-500.0,0.00013269,2]
[404145501,1769878238157,-500.0,0.00013269,2]
[404145502,1769878238167,-500.0,0.00013269,2]
[404145503,1769878238176,-500.0,0.00013269,2]
[404145504,1769878238185,-500.0,0.00013269,2]
[404145505,1769878238194,-500.0,0.00013269,2]
[404145506,1769878238203,-500.0,0.00013269,2]
[404145507,1769878238212,-500.0,0.00013269,2]
[404145508,1769878238222,-500.0,0.00013269,2]
[404145509,1769878238231,-153.22554625,0.00013269,2]
[404145510,1769878238241,-500.0,0.00013269,2]
[404145511,1769878238250,-500.0,0.00013269,2]
[404145512,1769878238260,-500.0,0.00013269,2]
[404145513,1769878238269,-500.0,0.00013269,2]
[404145514,1769878238279,-500.0,0.00013269,2]
[404145515,1769878238289,-500.0,0.00013269,2]
[404145516,1769878238299,-464.70965786,0.00013269,2]
[404145517,1769878238311,-500.0,0.00013269,2]
[404145518,1769878238321,-500.0,0.00013269,2]
[404145519,1769878238331,-500.0,0.00013269,2]
[404145520,1769878238341,-500.0,0.00013269,2]
[404145521,1769878238351,-500.0,0.00013269,2]
[404145522,1769878238361,-500.0,0.00013269,2]
[404145523,1769878238371,-500.0,0.00013269,2]
[404145524,1769878238381,-500.0,0.00013269,2]
[404145525,1769878238391,-500.0,0.00013269,2]
[404145526,1769878238400,-500.0,0.00013269,2]
[404145527,1769878238409,-500.0,0.00013269,2]
[404145528,1769878238420,-500.0,0.00013269,2]
[404145529,1769878238429,-500.0,0.00013269,2]
[404145530,1769878238439,-500.0,0.00013269,2]
[404145531,1769878238449,-500.0,0.00013269,2]
[404145532,1769878238458,-500.0,0.00013272,2]
[404145533,1769878238468,-500.0,0.00013273,2]
[404145534,1769878238478,-160.41327999,0.00013273,2]
[404145535,1769878238488,-500.0,0.00013273,2]
[404145536,1769878238497,-500.0,0.00013273,2]
[404145537,1769878238507,-500.0,0.00013273,2]
[404145538,1769878238517,-500.0,0.00013273,2]
[404145539,1769878238527,-10750.03374923,0.00013584,2]
[404145540,1769878238540,-1982.172141,0.00013584,2]
[404145541,1769878238549,-300.0,0.00013673,2]
[404145542,1769878238558,-14207.240606,0.00013699,2]
[404145543,1769878238568,-158.0,0.00013699,2]
[404145544,1769878238579,-333.29847338,0.00013699,2]
[404145545,1769878238589,-500.0,0.00013699,2]
[404145546,1769878238599,-505.35761339,0.00013699,2]
[404145547,1769878238609,-1000.0,0.00013821,2]
[404145548,1769878238619,-486.47052406,0.00013821,2]
[404145549,1769878238629,-500.0,0.00013821,2]
[404145550,1769878238639,-500.0,0.00013821,2]
[404145551,1769878238649,-1000.0,0.00013821,2]
[404145552,1769878238659,-1982.172141,0.00014156,2]
[404145553,1769878238671,-600.0,0.00014221,2]
[404145554,1769878238682,-1000.0,0.00014247,2]
[404145555,1769878238692,-1500.0,0.00014368,2]
[404145556,1769878238702,-420.0,0.00014405,2]
[404145557,1769878238711,-1982.172141,0.00014728,2]
[404145558,1769878238720,-300.0,0.00014768,2]
[404145559,1769878238730,-500.0,0.00014795,2]
[404145560,1769878238739,-2000.0,0.00014916,2]
[404145561,1769878238748,-457.610027,0.00015068,2]
[404145562,1769878238758,-500.0,0.00015092,2]
[404145563,1769878238767,-204.0,0.00015135,2]
[404145564,1769878238777,-6869.80308598,0.00015246,2]
[404145565,1769878238786,-1982.172141,0.000153,2]
[404145566,1769878238795,-500.0,0.00015341,2]
[404145567,1769878238805,-166.46010977,0.00015341,2]
[404145568,1769878238814,-213.91971754,0.00015341,2]
[404145569,1769878238825,-500.0,0.00015342,2]
[404145570,1769878238835,-9602.28,0.00015342,2]
[404145571,1769878238846,-500.0,0.00015399,2]
[404145572,1769878238855,-500.0,0.00015399,2]
[404145573,1769878238865,-500.0,0.00015399,2]
[404145574,1769878238874,-500.0,0.00015399,2]
[404145575,1769878238883,-587.0,0.00015795,2]
[404145576,1769878238893,-1982.172141,0.00015871,2]
[404145577,1769878238902,-1000.0,0.00016,2]
[404145578,1769878238911,-2000.0,0.00016438,2]
[404145579,1769878238923,-1982.172141,0.00016443,2]
[404145580,1769878238933,-498.5869069,0.0001662,2]
[404145581,1769878238943,-231.0,0.00017135,2]
[404145582,1769878238953,-823.0,0.0001732,2]
[404145583,1769878238965,-250.0,0.0001736,2]
[404145584,1769878238975,-1000.0,0.00018,2]
[404145585,1769878238985,-457.610027,0.00018493,2]
[404145586,1769878238994,-1152.0,0.00018991,2]
[404145587,1769878239004,-1000.0,0.00019,2]
[404145588,1769878239023,-258.0,0.00019135,2]
[404145589,1769878239034,-2000.0,0.00019178,12]
[404145590,1769878239043,-770.08,0.00019178,2]
[404145591,1769878239053,-151.04060416,0.00020726,2]
[404145592,1769878239063,-500.0,0.00020726,2]
[404145593,1769878239073,-500.0,0.00020726,2]
[404145594,1769878239083,-150.0,0.00020726,2]
[404145595,1769878239093,-150.0,0.00020726,2]
[404145596,1769878239105,-150.0,0.00020726,2]
[404145597,1769878239115,-150.0,0.00020726,2]
[404145598,1769878239124,-150.0,0.00020726,2]
[404145599,1769878239134,-150.0,0.00020726,2]
[404145600,1769878239143,-150.0,0.00020726,2]
[404145601,1769878239152,-1613.0,0.00020824,2]
[404145602,1769878239162,-500.0,0.00020863,2]
[404145603,1769878239172,-500.0,0.00020863,2]
[404145604,1769878239182,-150.0,0.00020863,2]
[404145605,1769878239192,-289.5,0.00020863,2]
[404145606,1769878239202,-150.0,0.00020863,2]
[404145607,1769878239211,-150.0,0.00020863,2]
[404145608,1769878239221,-150.0,0.00020863,2]
[404145609,1769878239231,-500.0,0.00021,2]
[404145610,1769878239241,-500.0,0.00021,2]
[404145612,1769878239251,-150.0,0.00021,2]
[404145613,1769878239260,-150.0,0.00021,2]
[404145614,1769878239269,-150.0,0.00021,2]
[404145615,1769878239279,-258.0,0.00021106,2]
[404145616,1769878239289,-166.75,0.00021106,2]
[404145617,1769878239299,-166.75,0.00021106,2]
[404145618,1769878239309,-166.75,0.00021106,2]
[404145619,1769878239319,-166.75,0.00021106,2]
[404145620,1769878239328,-166.75,0.00021106,2]
[404145621,1769878239338,-285.0,0.00021135,2]
[404145622,1769878239348,-150.0,0.00021137,2]
[404145623,1769878239358,-150.0,0.00021137,2]
[404145624,1769878239367,-150.0,0.00021274,2]
[404145625,1769878239377,-150.0,0.00021274,2]
[404145626,1769878239387,-250.0,0.00021411,2]
[404145627,1769878239396,-238.20198396,0.00021411,2]
[404145628,1769878239405,-2000.0,0.00021917,22]
[404145629,1769878239418,-457.610027,0.00021918,2]
[404145630,1769878239428,-2258.0,0.00022834,2]
[404145631,1769878239437,-312.0,0.00023135,2]
[404145632,1769878239447,-2000.0,0.00024657,32]
[404145633,1769878239456,-150.0,0.00024658,2]
[404145634,1769878239466,-500.0,0.00024658,2]
[404145635,1769878239475,-500.0,0.00024795,2]
[404145636,1769878239486,-3226.26972159,0.000249,2]
[404145637,1769878239496,-500.0,0.00024932,2]
[404145638,1769878239507,-1488.0,0.00025038,2]
[404145640,1769878239516,-500.0,0.00025069,2]
[404145642,1769878239531,-339.0,0.00025135,2]
[404145643,1769878239541,-200.20523241,0.00025205,2]
[404145645,1769878239550,-500.0,0.00025206,2]
[404145646,1769878239560,-457.610027,0.00025342,2]
[404145648,1769878239571,-500.0,0.00025343,2]
[404145650,1769878239581,-522.60105806,0.0002548,2]
[404145651,1769878239591,-160.0,0.00026182,2]
[404145652,1769878239603,-1041.66666667,0.00026182,2]
[404145653,1769878239615,-3226.26972159,0.0002625,2]
[404145654,1769878239625,-157.98,0.00026565,3]
[404145655,1769878239635,-473.94,0.00026565,3]
[404145656,1769878239644,-366.0,0.00027135,2]
[404145657,1769878239654,-1493.43178705,0.00027397,42]
[404145658,1769878239665,-236.58,0.000274,14]
[404145659,1769878239675,-315.96,0.00027935,3]
[404145660,1769878239684,-457.610027,0.00028767,60]
[404145661,1769878239693,-800.0,0.00029,2]
[404145662,1769878239703,-393.0,0.00029135,2]
[404145663,1769878239712,-800.0,0.0003,2]
[404145664,1769878239722,-749.1449659,0.00030136,14]
[404145665,1769878239732,-263.04031,0.000305,120]
[404145666,1769878239742,-800.0,0.00031,2]
[404145667,1769878239752,-420.0,0.00031135,2]
[404145668,1769878239761,-800.0,0.00032,2]
[404145669,1769878239771,-168.0,0.00032919,2]
[404145670,1769878239781,-168.0,0.00032978,2]
[404145671,1769878239791,-800.0,0.00033,2]
[404145672,1769878239802,-632.5,0.00033029,30]
[404145673,1769878239812,-447.0,0.00033135,120]
[404145674,1769878239823,-236.58,0.000332,30]
[404145675,1769878239833,-168.0,0.00033553,2]
[404145676,1769878239843,-168.0,0.0003367,2]
[404145677,1769878239856,-531.73,0.00033698,30]
[404145678,1769878239865,-168.0,0.00033702,2]
[404145679,1769878239877,-326.32,0.00033794,14]
[404145680,1769878239888,-487.0,0.00033794,2]
[404145681,1769878239898,-487.0,0.00033794,2]
[404145682,1769878239908,-487.0,0.00033794,2]
[404145683,1769878239923,-487.0,0.00033794,2]
[404145684,1769878239933,-487.0,0.00033794,2]
[404145685,1769878239942,-885.57,0.00033794,2]
[404145686,1769878239951,-315.95,0.00033877,3]
[404145687,1769878239962,-400.0,0.00033887,11]
[404145688,1769878239972,-800.0,0.00034,2]
[404145689,1769878239981,-400.0,0.00034207,11]
[404145690,1769878239990,-168.0,0.00034368,2]
[404145691,1769878239999,-291.1334,0.000345,20]
[404145692,1769878240009,-630.0,0.00034517,2]
[404145693,1769878240019,-2151.0,0.00034517,2]
[404145694,1769878240028,-203.757,0.00034517,2]
[404145695,1769878240038,-716.0,0.00034517,2]
[404145696,1769878240047,-182.056,0.00034517,2]
[404145697,1769878240056,-418.0,0.00034517,2]
[404145698,1769878240065,-531.73,0.0003452,31]
[404145699,1769878240075,-400.0,0.00034541,11]
[404145700,1769878240212,-168.0,0.00034639,2]
[404145701,1769878240224,-400.0,0.00034746,11]
[404145702,1769878240234,-710.0,0.00034754,11]
[404145703,1769878240243,-168.0,0.00034785,2]
[404145704,1769878240253,-710.0,0.00034908,11]
[404145705,1769878240263,-168.0,0.00034924,2]
[404145706,1769878240274,-710.0,0.00034963,11]
[404145707,1769878240285,-800.0,0.00035,120]
[404145708,1769878240295,-200.0,0.00035014,120]
[404145709,1769878240306,-474.0,0.00035135,120]
[404145710,1769878240315,-181.8034479,0.00035171,2]
[404145711,1769878240326,-631.9,0.00035247,3]
[404145712,1769878240335,-168.0,0.00035263,2]
[404145713,1769878240344,-151.0,0.000353,10]
[404145714,1769878240353,-236.58,0.000353,30]
[404145715,1769878240362,-531.73,0.00035342,32]
[404145716,1769878240372,-150.0,0.000355,10]
[404145717,1769878240382,-151.0,0.000357,20]
[404145718,1769878240391,-3226.26972159,0.0003574,3]
[404145719,1769878240406,-1859.31245628,0.0003575,7]
[404145720,1769878240427,-2585.53785056,0.0003575,7]
[404145721,1769878240439,-825.66070454,0.0003575,7]
[404145722,1769878240448,-756.43445046,0.0003575,7]
[404145723,1769878240458,-769.84491472,0.0003575,7]
[404145724,1769878240467,-2838.84700776,0.0003575,7]
[404145725,1769878240476,-3079.37965889,0.0003575,7]
[404145726,1769878240485,-668.55054438,0.00035811,2]
[404145727,1769878240494,-1084.902,0.00035811,2]
[404145728,1769878240504,-300.20588989,0.00035816,2]
[404145729,1769878240514,-540.3706018,0.00035816,2]
[404145730,1769878240526,-960.65884765,0.00035816,2]
[404145731,1769878240540,-1501.02944945,0.00035816,2]
[404145732,1769878240549,-408.79834038,0.00035816,2]
[404145733,1769878240559,-735.83701268,0.00035816,2]
[404145734,1769878240568,-1308.1546892,0.00035816,2]
[404145735,1769878240578,-2043.99170188,0.00035816,2]
[404145736,1769878240587,-2943.34805071,0.00035816,2]
[404145737,1769878240596,-4006.22373568,0.00035816,2]
[404145738,1769878240607,-5227.38613805,0.00035816,2]
[404145739,1769878240616,-421.55543614,0.00035816,2]
[404145740,1769878240626,-758.79978506,0.00035816,2]
[404145741,1769878240635,-1348.97739566,0.00035816,2]
[404145742,1769878240644,-2107.77718071,0.00035816,2]
[404145743,1769878240654,-3035.19914023,0.00035816,2]
[404145744,1769878240665,-4127.11203092,0.00035816,2]
[404145745,1769878240674,-168.0,0.00035826,2]
[404145746,1769878240684,-276.81,0.00035873,14]
[404145747,1769878240695,-168.0,0.0003588,2]
[404145748,1769878240705,-151.0,0.000359,20]
[404145749,1769878240714,-151.0,0.000359,18]
[404145750,1769878240723,-3226.26972159,0.00035912,3]
[404145751,1769878240733,-20162.00766259,0.00035922,2]
[404145752,1769878240743,-292.15872386,0.00035979,5]
[404145753,1769878240753,-1000.0,0.00036,120]
[404145754,1769878240762,-151.0,0.00036,15]
[404145755,1769878240772,-151.0,0.00036,13]
[404145756,1769878240782,-151.0,0.00036,12]
[404145757,1769878240792,-800.0,0.00036,120]
[404145758,1769878240802,-168.0,0.0003606,2]
[404145759,1769878240814,-3226.26972159,0.00036063,3]
[404145760,1769878240826,-31345.02582566,0.00036073,2]
[404145761,1769878240835,-31699.80707922,0.00036073,2]
[404145762,1769878240846,-38610.84818768,0.00036073,30]
[404145763,1769878240855,-151.0,0.000361,18]
[404145764,1769878240864,-151.0,0.000361,14]
[404145765,1769878240875,-6125.94,0.000361,120]
[404145766,1769878240886,-168.0,0.00036128,2]
[404145767,1769878240895,-531.73,0.00036164,33]
[404145768,1769878240906,-200.0,0.00036172,10]
[404145769,1769878240918,-151.0,0.00036173,31]
[404145770,1769878240927,-151.0,0.00036173,31]
[404145771,1769878240936,-151.0,0.00036173,31]
[404145772,1769878240946,-151.0,0.00036173,31]
[404145773,1769878240956,-2975242.60573124,0.00036173,20]
[404145774,1769878240971,-256.909,0.00036173,20]
[404145775,1769878240982,-15511.46417231,0.00036173,20]
[404145776,1769878240993,-25766.31335173,0.00036173,20]
[404145783,1769878242255,-10286.80669438,0.00036173,20]
[404145788,1769878242323,-500.00072362,0.00036173,20]
[404145824,1769878244957,-2054.92963174,0.00035699,2]
[404145825,1769878244971,-2945.07036826,0.00035699,2]
[404145826,1769878244982,-315.95,0.00036163,3]
[404145827,1769878244993,-74960.8952826,0.00036173,20]
[404145828,1769878245005,-500.0,0.00036173,20]
[404145830,1769878245016,-6555.00000238,0.00036173,20]
[404145851,1769878245824,-8455.0,0.00036173,20]
[404145852,1769878245988,-4637.90314327,0.00036173,20]
[404145855,1769878347200,-300.0,0.00013268,2]
[404145895,1769878837159,-3091.89736841,0.00011806,2]
[404145914,1769878883828,-5000.0,0.00011688,2]
[404145915,1769878883869,-1908.10263159,0.00011806,2]
[404145916,1769878883907,-949.3784098,0.00011925,2]
[404145917,1769878883945,-236.11697328,0.00012083,2]
[404145918,1769878883986,-150.0,0.00012144,2]
[404145919,1769878884024,-300.0,0.00012203,2]
[404145920,1769878884062,-300.0,0.00012204,2]
[404145921,1769878884101,-217.0,0.00012204,2]
[404145922,1769878884142,-300.0,0.00012204,2]
[404145923,1769878884185,-1200.0,0.00012204,2]
[404145924,1769878884225,-500.0,0.00012328,2]
[404145925,1769878884264,-500.0,0.00012328,2]
[404145926,1769878884306,-500.0,0.00012328,2]
[404145927,1769878884346,-500.0,0.00012328,2]
[404145928,1769878884383,-500.0,0.00012328,2]
[404145929,1769878884419,-575.85775315,0.00012328,2]
[404145930,1769878884461,-500.0,0.00012328,2]
[404145931,1769878884501,-500.0,0.00012328,2]
[404145932,1769878884541,-500.0,0.00012328,2]
[404145933,1769878884686,-500.0,0.00012328,2]
[404145934,1769878884726,-500.0,0.00012328,2]
[404145935,1769878884766,-500.0,0.00012328,2]
[404145936,1769878884806,-500.0,0.00012328,2]
[404145937,1769878884844,-500.0,0.00012328,2]
[404145938,1769878884883,-500.0,0.00012328,2]
[404145939,1769878884922,-500.0,0.00012328,2]
[404145940,1769878884961,-500.0,0.00012328,2]
[404145941,1769878885000,-500.0,0.00012328,2]
[404145942,1769878885044,-500.0,0.00012328,2]
[404145943,1769878885093,-500.0,0.00012328,2]
[404145944,1769878885146,-500.0,0.00012328,2]
[404145945,1769878885186,-500.0,0.00012328,2]
[404145946,1769878885226,-528.2382447,0.00012328,2]
[404145947,1769878885270,-500.0,0.00012328,2]
[404145948,1769878885313,-500.0,0.00012328,2]
[404145949,1769878885379,-500.0,0.00012328,2]
[404145950,1769878885419,-500.0,0.00012328,2]
[404145951,1769878885468,-500.0,0.00012328,2]
[404145952,1769878885514,-500.0,0.00012328,2]
[404145953,1769878885558,-500.0,0.00012328,2]
[404145954,1769878885599,-500.0,0.00012328,2]
[404145955,1769878885638,-500.0,0.00012328,2]
[404145956,1769878885678,-500.0,0.00012328,2]
[404145957,1769878885721,-188.03124296,0.00012328,2]
[404145958,1769878885760,-500.0,0.00012328,2]
[404145959,1769878885804,-500.0,0.00012328,2]
[404145960,1769878885844,-565.32255462,0.00012328,2]
[404145961,1769878885882,-500.0,0.00012328,2]
[404145962,1769878885922,-500.0,0.00012328,2]
[404145963,1769878885963,-500.0,0.00012328,2]
[404145964,1769878886003,-500.0,0.00012328,2]
[404145965,1769878886043,-500.0,0.00012328,2]
[404145966,1769878886082,-500.0,0.00012328,2]
[404145967,1769878886125,-500.0,0.00012328,2]
[404145968,1769878886164,-500.0,0.00012328,2]
[404145969,1769878886206,-500.0,0.00012328,2]
[404145970,1769878886243,-500.0,0.00012328,2]
[404145971,1769878886281,-500.0,0.00012328,2]
[404145972,1769878886320,-500.0,0.00012328,2]
[404145973,1769878886360,-500.0,0.00012328,2]
[404145974,1769878886400,-500.0,0.00012328,2]
[404145975,1769878886444,-500.0,0.00012328,2]
[404145976,1769878886484,-500.0,0.00012328,2]
[404145977,1769878886610,-500.0,0.00012328,2]
[404145978,1769878886650,-500.0,0.00012328,2]
[404145979,1769878886690,-500.0,0.00012328,2]
[404145980,1769878886733,-500.0,0.00012328,2]
[404145981,1769878886773,-519.50676459,0.00012328,2]
[404145982,1769878886810,-50000.0,0.00012329,2]
[404145983,1769878886847,-566.35,0.00012329,2]
[404145984,1769878886883,-471.96,0.00012329,2]
[404145985,1769878886921,-393.3,0.00012329,2]
[404145986,1769878886960,-327.75,0.00012329,2]
[404145987,1769878886996,-212.50420896,0.000125,2]
[404145988,1769878887036,-272.69,0.000131,2]
[404145989,1769878893166,5000.0,0.000131,2]
[404145990,1769878901452,5000.0,0.000131,2]
[404145993,1769878917784,5000.0,0.000131,2]
[404145997,1769878926201,5000.0,0.000131,2]
[404146025,1769878941369,5000.0,0.000131,2]
[404146059,1769878949140,5000.0,0.000131,2]
[404146068,1769878965592,5000.0,0.000131,2]
[404146069,1769878973307,5000.0,0.000131,2]
[404146085,1769878988587,5000.0,0.000131,2]
[404146101,1769878993123,171.072703,0.00012608,2]
[404146103,1769878996399,5000.0,0.000131,2]
[404146110,1769879011632,5000.0,0.000131,2]
[404146112,1769879019472,5000.0,0.000131,2]
[404146114,1769879035817,5000.0,0.000131,2]
[404146116,1769879043627,5000.0,0.000131,2]
[404146130,1769879059370,5000.0,0.000131,2]
[404146131,1769879067236,1815.49883927,0.000131,2]
[404146132,1769879071586,10000.0,0.00012651,2]
[404146133,1769879083212,5000.0,0.000131,2]
[404146134,1769879106016,5000.0,0.000131,2]
[404146136,1769879128336,0.01,0.000131,2]
[404146137,1769879128359,4999.99,0.000131,2]
[404146145,1769879150595,5000.0,0.000131,2]
[404146152,1769879173630,0.02,0.000131,2]
[404146153,1769879173657,4999.98,0.000131,2]
[404146154,1769879195776,5000.0,0.000131,2]
[404146157,1769879214122,-329.32096283,0.00013271,2]
[404146158,1769879214143,-987.0,0.00013272,2]
[404146159,1769879214166,-150.0,0.00013272,2]
[404146160,1769879214187,-500.0,0.00013273,2]
[404146161,1769879214210,-500.0,0.00013273,2]
[404146162,1769879214229,-500.0,0.00013273,2]
[404146163,1769879214250,-500.0,0.00013273,2]
[404146164,1769879214271,-500.0,0.00013273,2]
[404146165,1769879214290,-399.75562085,0.00013273,2]
[404146166,1769879218171,0.03,0.000131,2]
[404146167,1769879218195,4999.97,0.000131,2]
[404146169,1769879233081,-500.0,0.00013273,2]
[404146170,1769879233100,-527.31612557,0.00013273,2]
[404146171,1769879233122,-23.3786037,0.00013273,2]
[404146172,1769879240477,5000.0,0.000131,2]
[404146186,1769879263271,0.04,0.000131,2]
[404146187,1769879263294,4999.96,0.000131,2]
[404146195,1769879287280,5000.0,0.000131,2]
[404146234,1769879312145,0.05,0.000131,2]
[404146235,1769879312170,4999.95,0.000131,2]
[404146255,1769879334468,5000.0,0.000131,2]
[404146256,1769879340794,-300.0,0.00013272,2]
[404146260,1769879358406,0.06,0.000131,2]
[404146261,1769879358431,4999.94,0.000131,2]
[404146262,1769879381412,5000.0,0.000131,2]
[404146291,1769879404353,5000.0,0.000131,2]
[404146293,1769879427499,5000.0,0.000131,2]
[404146354,1769879431803,-300.0,0.00013272,2]
[404146357,1769879431812,-608.0,0.00013272,2]
[404146360,1769879431821,-500.0,0.00013273,2]
[404146363,1769879431831,-500.0,0.00013273,2]
[404146366,1769879431839,-592.41079471,0.00013273,2]
[404146369,1769879431848,-175.69914693,0.00013273,2]
[404146372,1769879431858,-500.0,0.00013273,2]
[404146375,1769879431870,-500.0,0.00013273,2]